bitfinex/quotes_BTCUSD_20250614
["timestamp","ask_amount","ask_price","bid_price","bid_amount"]
[1749935046131,1.32201038,105060.0,105050.0,0.1892]
[1749935046778,1.32201039,105060.0,105050.0,0.1892]
[1749935046988,1.31307796,105060.0,105050.0,0.1892]
[1749935047201,1.32201039,105060.0,105050.0,0.19871927]
[1749935047408,1.32201036,105060.0,105050.0,0.3891048]
[1749935047620,1.31307796,105060.0,105050.0,0.3891048]
[1749935048059,1.32201038,105060.0,105050.0,0.3891048]
[1749935048272,1.31307796,105060.0,105050.0,0.3891048]
[1749935048489,1.32201038,105060.0,105050.0,0.3891048]
[1749935048921,1.31307796,105060.0,105050.0,0.3891048]
[1749935049169,1.32201039,105060.0,105050.0,0.3891048]
[1749935049375,1.32201039,105060.0,105050.0,0.39862398]
[1749935049376,1.32201038,105060.0,105050.0,0.39862398]
[1749935049805,1.31307796,105060.0,105050.0,0.39862398]
[1749935050035,1.32201037,105060.0,105050.0,0.39862398]
[1749935050245,1.31307796,105060.0,105050.0,0.39862398]
[1749935050486,1.32201038,105060.0,105050.0,0.3891048]
[1749935050702,1.31307796,105060.0,105050.0,0.39862398]
[1749935051358,1.32201043,105060.0,105050.0,0.39862398]
[1749935051576,1.32201041,105060.0,105050.0,0.39862398]
[1749935052035,1.32201043,105060.0,105050.0,0.39862398]
[1749935052255,1.32201044,105060.0,105050.0,0.39862398]
[1749935052682,1.31307796,105060.0,105050.0,0.39862398]
[1749935052898,1.32201044,105060.0,105050.0,0.39862398]
[1749935053103,1.32201044,105060.0,105050.0,0.39854398]
[1749935053347,1.31307796,105060.0,105050.0,0.39854398]
[1749935053819,1.32201044,105060.0,105050.0,0.39854398]
[1749935054030,1.31307796,105060.0,105050.0,0.39854398]
[1749935054239,1.32201044,105060.0,105050.0,0.19863927]
[1749935054871,1.32201048,105060.0,105050.0,0.19863927]
[1749935055291,1.32201047,105060.0,105050.0,0.19863927]
[1749935055956,1.31307796,105060.0,105050.0,0.19863927]
[1749935056181,1.31307796,105060.0,105050.0,0.3890248]
[1749935056384,1.32201039,105060.0,105050.0,0.3890248]
[1749935056587,1.32201033,105060.0,105050.0,0.3890248]
[1749935056862,1.32201032,105060.0,105050.0,0.3890248]
[1749935057072,1.31307796,105060.0,105050.0,0.19863927]
[1749935057498,1.32201032,105060.0,105050.0,0.19863927]
[1749935057728,1.31307796,105060.0,105050.0,0.19863927]
[1749935057936,1.32201036,105060.0,105050.0,0.19863927]
[1749935058149,1.31307796,105060.0,105050.0,0.19863927]
[1749935058363,1.31307796,105060.0,105050.0,0.39854398]
[1749935058587,1.32201032,105060.0,105050.0,0.3890248]
[1749935059221,1.32201034,105060.0,105050.0,0.18912]
[1749935059418,1.31307796,105060.0,105050.0,0.18912]
[1749935060250,1.32201061,105060.0,105050.0,0.18912]
[1749935060463,1.31307796,105060.0,105050.0,0.18912]
[1749935060667,1.32201063,105060.0,105050.0,0.18912]
[1749935060875,1.31307796,105060.0,105050.0,0.18912]
[1749935061554,1.32201059,105060.0,105050.0,0.18912]
[1749935061981,1.31307796,105060.0,105050.0,0.18912]
[1749935062620,1.32201275,105060.0,105050.0,0.18912]
[1749935062844,1.9255371,105060.0,105050.0,0.18944]
[1749935063098,2.02168632,105060.0,105050.0,0.18944]
[1749935063339,2.02168632,105060.0,105050.0,0.18952]
[1749935063579,2.0306212,105060.0,105050.0,0.18952]
[1749935063832,2.03062125,105060.0,105050.0,0.18952]
[1749935064076,2.02168632,105060.0,105050.0,0.18952]
[1749935064359,2.03062131,105060.0,105050.0,0.18952]
[1749935064570,2.02168632,105060.0,105050.0,0.18952]
[1749935065071,2.03062157,105060.0,105050.0,0.18952]
[1749935065293,2.03062149,105060.0,105050.0,0.18952]
[1749935065524,1.93446734,105060.0,105050.0,0.18952]
[1749935065750,1.9255371,105060.0,105050.0,0.18952]
[1749935066015,1.32200808,105060.0,105050.0,0.18952]
[1749935066235,1.3220078,105060.0,105050.0,0.18952]
[1749935066465,1.32200777,105060.0,105050.0,0.18952]
[1749935066711,1.31307796,105060.0,105050.0,0.18952]
[1749935066994,1.32200778,105060.0,105050.0,0.18952]
[1749935067206,1.32200777,105060.0,105050.0,0.18952]
[1749935067412,1.31307796,105060.0,105050.0,0.0336]
[1749935067622,1.3220078,105060.0,105050.0,0.1896]
[1749935067847,1.32200781,105060.0,105050.0,0.1896]
[1749935068926,1.31307796,105060.0,105050.0,0.1896]
[1749935069138,1.32200779,105060.0,105050.0,0.1896]
[1749935069351,1.3220078,105060.0,105050.0,0.1896]
[1749935071143,1.31307796,105060.0,105050.0,0.1896]
[1749935071606,0.70954865,105060.0,105050.0,0.1896]
[1749935071842,1.23528405,105060.0,105050.0,0.39902362]
[1749935072105,0.05431983,105060.0,105050.0,0.53951938]
[1749935072319,0.04539066,105060.0,105050.0,1.15197852]
[1749935072540,0.06442594,105060.0,105050.0,1.15197852]
[1749935072786,0.06442585,105060.0,105050.0,1.15197852]
[1749935073002,0.06242585,105060.0,105050.0,1.15197852]
[1749935073222,0.06042585,105060.0,105050.0,1.15197852]
[1749935073446,0.06994367,105060.0,105050.0,0.54251938]
[1749935073663,0.08897976,105060.0,105050.0,0.42106117]
[1749935073877,0.07946167,105060.0,105050.0,0.42106117]
[1749935074095,0.08897994,105060.0,105050.0,0.42106117]
[1749935074306,0.07946167,105060.0,105050.0,0.42106117]
[1749935074965,0.08897985,105060.0,105050.0,0.42106117]
[1749935075589,0.06994367,105060.0,105050.0,0.42106117]
[1749935076465,0.06042585,105060.0,105050.0,0.42106117]
[1749935076685,0.06994367,105060.0,105050.0,0.51721039]
[1749935077106,0.04139066,105060.0,105050.0,1.06137454]
[1749935077345,0.04139066,105060.0,105050.0,0.51721039]
[1749935077560,0.04139066,105060.0,105050.0,1.06137454]
[1749935077792,0.00280069,105060.0,105050.0,1.06137454]
[1749935081787,0.03048737,105060.0,105050.0,1.06137454]
[1749935081996,0.00280069,105060.0,105050.0,1.06137454]
[1749935084485,0.00280069,105060.0,105050.0,1.10189454]
[1749935084896,0.01231824,105060.0,105050.0,1.10189454]
[1749935085540,0.00280069,105060.0,105050.0,1.10189454]
[1749935086245,0.03071216,105060.0,105050.0,1.10189454]
[1749935086437,0.00280069,105060.0,105050.0,1.10189454]
[1749935088053,0.00280069,105060.0,105050.0,0.55773039]
[1749935088300,0.01231833,105060.0,105050.0,0.55773039]
[1749935088516,0.22172146,105060.0,105050.0,0.23650462]
[1749935088730,0.77540452,105060.0,105050.0,0.0366]
[1749935088966,0.7563687,105060.0,105050.0,0.24275927]
[1749935089179,0.7563687,105060.0,105050.0,0.45218262]
[1749935089432,0.5660013,105060.0,105050.0,0.46170135]
[1749935089617,0.05914499,105060.0,105050.0,0.47121999]
[1749935092362,0.04962681,105060.0,105050.0,0.47121999]
[1749935095373,0.04962681,105060.0,105050.0,0.46929999]
[1749935100201,0.05914427,105060.0,105050.0,0.46929999]
[1749935100698,0.04962627,105060.0,105050.0,0.46929999]
[1749935100937,0.06866227,105060.0,105050.0,0.46929999]
[1749935101403,0.05914418,105060.0,105050.0,0.46929999]
[1749935101698,0.06866227,105060.0,105050.0,0.46929999]
[1749935101903,0.05914418,105060.0,105050.0,0.46929999]
[1749935102353,0.06866227,105060.0,105050.0,0.46929999]
[1749935102836,0.36469716,105060.0,105050.0,0.46929999]
[1749935103081,0.36411338,105060.0,105050.0,0.45026262]
[1749935103331,0.16481221,105060.0,105050.0,0.45978126]
[1749935103584,0.16481212,105060.0,105050.0,0.45978126]
[1749935104042,0.0686629,105060.0,105050.0,0.45978126]
[1749935104936,0.04962663,105060.0,105050.0,0.45978126]
[1749935105442,0.05914472,105060.0,105050.0,0.45978126]
[1749935105655,0.04010845,105060.0,105050.0,0.45978126]
[1749935105885,0.04962609,105060.0,105050.0,0.45978126]
[1749935106139,0.05914391,105060.0,105050.0,0.45978126]
[1749935107446,0.04962609,105060.0,105050.0,0.45978126]
[1749935107658,0.05914391,105060.0,105050.0,0.45978126]
[1749935107882,0.04962609,105060.0,105050.0,0.45978126]
[1749935108095,0.05914391,105060.0,105050.0,0.45978126]
[1749935108532,0.04962609,105060.0,105050.0,0.45978126]
[1749935108978,0.0305909,105060.0,105050.0,0.45978126]
[1749935109235,0.00280069,105060.0,105050.0,1.10009463]
[1749935111627,0.00280069,105060.0,105050.0,1.00394541]
[1749935112057,0.00280069,105060.0,105050.0,0.45978126]
[1749935113318,0.01231824,105060.0,105050.0,0.45978126]
[1749935113951,0.00280069,105060.0,105050.0,0.45978126]
[1749935114870,0.01231824,105060.0,105050.0,0.45978126]
[1749935115084,0.00280069,105060.0,105050.0,0.45978126]
[1749935115294,0.01231824,105060.0,105050.0,0.45978126]
[1749935116355,0.01231833,105060.0,105050.0,0.45978126]
[1749935117448,0.02183606,105060.0,105050.0,0.87535437]
[1749935117666,0.03135397,105060.0,105050.0,1.07191437]
[1749935118317,0.01231833,105060.0,105050.0,1.07191437]
[1749935118550,0.02183615,105060.0,105050.0,1.07191437]
[1749935118972,0.01231833,105060.0,105050.0,1.07191437]
[1749935119388,0.00280069,105060.0,105050.0,1.07191437]
[1749935119593,0.01231833,105060.0,105050.0,1.07191437]
[1749935120015,0.00280069,105060.0,105050.0,1.07191437]
[1749935120230,0.00280069,105060.0,105050.0,1.16806359]
[1749935120451,0.00280069,105060.0,105050.0,1.26430535]
[1749935120697,0.00280069,105060.0,105050.0,1.29267087]
[1749935120909,0.00280069,105060.0,105050.0,1.90488398]
[1749935121398,0.00280069,105060.0,105050.0,1.22435704]
[1749935121585,0.00280069,105060.0,105050.0,1.37783789]
[1749935121795,0.00280069,105060.0,105050.0,1.72727818]
[1749935122007,0.00280069,105060.0,105050.0,1.94017469]
[1749935122219,0.00280069,105060.0,105050.0,1.93817469]
[1749935122469,0.00961393,105100.0,105090.0,0.25295892]
[1749935122695,0.03757328,105100.0,105090.0,0.45522955]
[1749935122908,0.05212198,105100.0,105090.0,0.45522955]
[1749935123120,0.03757309,105100.0,105090.0,0.45522955]
[1749935123335,0.03757302,105100.0,105090.0,0.45522955]
[1749935123550,0.0090306,105100.0,105090.0,0.40899892]
[1749935123770,0.00950653,105100.0,105090.0,0.9528982]
[1749935123980,0.0035762,105100.0,105090.0,0.9528982]
[1749935124205,0.0125065,105100.0,105090.0,0.40899892]
[1749935124466,0.0005762,105100.0,105090.0,1.04913996]
[1749935124675,0.0005762,105100.0,105090.0,1.13370556]
[1749935125533,0.0005762,105100.0,105090.0,1.13570556]
[1749935125962,0.01799336,105110.0,105100.0,0.25293809]
[1749935126172,0.55879755,105120.0,105110.0,0.25291719]
[1749935126382,0.55884514,105120.0,105110.0,0.40895719]
[1749935126590,0.36858467,105120.0,105110.0,0.41847039]
[1749935126802,0.38702665,105120.0,105110.0,0.41847039]
[1749935127031,0.41207918,105120.0,105110.0,0.41847039]
[1749935127239,0.40256641,105120.0,105110.0,0.41847039]
[1749935127482,0.39363721,105120.0,105110.0,0.48029832]
[1749935127701,0.39405389,105120.0,105110.0,0.41847039]
[1749935127905,0.41407867,105120.0,105110.0,0.41847039]
[1749935128115,0.41407869,105120.0,105110.0,0.41847039]
[1749935128355,0.39563694,105120.0,105110.0,0.41847039]
[1749935128560,0.40447848,105120.0,105110.0,0.41847039]
[1749935128767,0.41399123,105120.0,105110.0,0.41847039]
[1749935128976,0.40447848,105120.0,105110.0,0.41847039]
[1749935129186,0.41399116,105120.0,105110.0,0.41847039]
[1749935129404,0.39554938,105120.0,105110.0,0.41847039]
[1749935129618,0.40447848,105120.0,105110.0,0.41847039]
[1749935129836,0.41399123,105120.0,105110.0,0.41847039]
[1749935130098,0.42068805,105120.0,105110.0,0.41847039]
[1749935130528,0.42068807,105120.0,105110.0,0.41847039]
[1749935130751,1.14815008,105120.0,105110.0,0.39956399]
[1749935130962,0.98244643,105120.0,105110.0,0.41859058]
[1749935131175,0.98244649,105120.0,105110.0,0.41859058]
[1749935131391,0.9645882,105120.0,105110.0,0.41859058]
[1749935131608,0.98244646,105120.0,105110.0,0.41859058]
[1749935132040,1.16377607,105120.0,105110.0,0.40907738]
[1749935132226,1.17270522,105120.0,105110.0,0.40907738]
[1749935132466,1.15484695,105120.0,105110.0,0.40907738]
[1749935132680,1.17270524,105120.0,105110.0,0.40907738]
[1749935132889,1.17270526,105120.0,105110.0,0.40907738]
[1749935133315,1.15484697,105120.0,105110.0,0.40907738]
[1749935133532,0.60425083,105120.0,105110.0,0.41859067]
[1749935133743,0.59532169,105120.0,105110.0,0.40907738]
[1749935133959,0.61094767,105120.0,105110.0,0.40907738]
[1749935134164,1.16377609,105120.0,105110.0,0.40907738]
[1749935134585,1.17270518,105120.0,105110.0,0.40907738]
[1749935134819,1.15484693,105120.0,105110.0,0.41859067]
[1749935135022,1.16600834,105120.0,105110.0,0.40907738]
[1749935135226,1.15649613,105120.0,105110.0,0.25291738]
[1749935135431,1.14533473,105120.0,105110.0,0.40923738]
[1749935135641,1.16319298,105120.0,105110.0,0.41875067]
[1749935135850,1.16319297,105120.0,105110.0,0.41875067]
[1749935136056,1.16319293,105120.0,105110.0,0.41875067]
[1749935136261,1.15426382,105120.0,105110.0,0.41875067]
[1749935136467,1.13863788,105120.0,105110.0,0.41875067]
[1749935136682,0.40166376,105120.0,105110.0,0.41875067]
[1749935136895,0.95730816,105120.0,105110.0,0.42826387]
[1749935137117,0.95507588,105120.0,105110.0,0.42826387]
[1749935137329,0.96623723,105120.0,105110.0,0.42826387]
[1749935137551,0.94837902,105120.0,105110.0,0.42826387]
[1749935137770,0.94837903,105120.0,105110.0,0.42826387]
[1749935137980,0.96623726,105120.0,105110.0,0.42826387]
[1749935138192,0.95730811,105120.0,105110.0,0.42826387]
[1749935138400,0.96400493,105120.0,105110.0,0.42826387]
[1749935138631,0.93663336,105120.0,105110.0,0.42826387]
[1749935138839,0.9573074,105120.0,105110.0,0.42826387]
[1749935139051,0.9729333,105120.0,105110.0,0.42826387]
[1749935139260,0.41059226,105120.0,105110.0,0.42826387]
[1749935139470,0.39273407,105120.0,105110.0,0.42826387]
[1749935139752,0.06058419,105120.0,105110.0,0.42826387]
[1749935139959,0.04612482,105120.0,105110.0,0.42826387]
[1749935140170,0.05505354,105120.0,105110.0,0.42826387]
[1749935140382,0.05505347,105120.0,105110.0,0.42826387]
[1749935140593,0.62632274,105120.0,105110.0,0.42826387]
[1749935140805,0.07126291,105120.0,105110.0,0.42826387]
[1749935141022,0.06398255,105120.0,105110.0,0.42826387]
[1749935141232,0.06456632,105120.0,105110.0,0.42826387]
[1749935141459,0.08242399,105120.0,105110.0,0.42826387]
[1749935141647,0.06456632,105120.0,105110.0,0.42826387]
[1749935141892,0.07349524,105120.0,105110.0,0.42826387]
[1749935142110,0.08242412,105120.0,105110.0,0.42826387]
[1749935142751,0.08242407,105120.0,105110.0,0.42826387]
[1749935142977,0.07349521,105120.0,105110.0,0.42826387]
[1749935143244,0.06398256,105120.0,105110.0,0.42826387]
[1749935143468,0.07291141,105120.0,105110.0,0.42826387]
[1749935143681,0.05563739,105120.0,105110.0,0.42826387]
[1749935143934,0.05505368,105120.0,105110.0,0.42826387]
[1749935144167,0.06398247,105120.0,105110.0,0.49419575]
[1749935144409,0.07349486,105120.0,105110.0,0.42826387]
[1749935144663,0.07349482,105120.0,105110.0,0.42826387]
[1749935144906,0.08242347,105120.0,105110.0,0.46902387]
[1749935145133,0.07291085,105120.0,105110.0,0.46902387]
[1749935145362,0.08242361,105120.0,105110.0,0.42810387]
[1749935145580,0.08242352,105120.0,105110.0,0.42810387]
[1749935145798,0.06456618,105120.0,105110.0,0.42810387]
[1749935146257,0.06456619,105120.0,105110.0,0.42810387]
[1749935146524,0.05563748,105120.0,105110.0,0.42810387]
[1749935146783,0.04612482,105120.0,105110.0,0.42810387]
[1749935147033,0.07407893,105120.0,105110.0,0.42810387]
[1749935147242,0.07407892,105120.0,105110.0,0.42810387]
[1749935147523,0.06515023,105120.0,105110.0,0.42810387]
[1749935147931,0.05563748,105120.0,105110.0,0.42810387]
[1749935148145,0.06456618,105120.0,105110.0,0.42810387]
[1749935148373,0.05563748,105120.0,105110.0,0.42810387]
[1749935148562,0.06455463,105120.0,105110.0,0.42810387]
[1749935149997,0.05563748,105120.0,105110.0,0.42810387]
[1749935150224,0.06455463,105120.0,105110.0,0.42810387]
[1749935150444,0.06455463,105120.0,105110.0,0.46886387]
[1749935150639,0.07406738,105120.0,105110.0,0.46886387]
[1749935151058,0.06455463,105120.0,105110.0,0.46886387]
[1749935151886,0.05563748,105120.0,105110.0,0.46886387]
[1749935153189,0.06515023,105120.0,105110.0,0.46886387]
[1749935153750,0.05563748,105120.0,105110.0,0.46886387]
[1749935156672,0.96149153,105130.0,105120.0,0.0313]
[1749935156673,1.10149582,105130.0,105120.0,0.0313]
[1749935156885,1.08365295,105130.0,105120.0,0.23107159]
[1749935157099,1.09258158,105130.0,105120.0,0.23107159]
[1749935157317,1.1603187,105130.0,105120.0,0.23107159]
[1749935157528,1.16924733,105130.0,105120.0,0.23107159]
[1749935157740,1.17817596,105130.0,105120.0,0.23107159]
[1749935157956,1.1623187,105130.0,105120.0,0.22155875]
[1749935158213,1.15539007,105130.0,105120.0,0.22155875]
[1749935158455,1.1643187,105130.0,105120.0,0.22155875]
[1749935158697,1.18217596,105130.0,105120.0,0.22155875]
[1749935159204,1.1643187,105130.0,105120.0,0.22155875]
[1749935159410,1.17935413,105130.0,105120.0,0.23107168]
[1749935159626,1.18828276,105130.0,105120.0,0.23107168]
[1749935160052,1.17935413,105130.0,105120.0,0.23107168]
[1749935160268,1.20614002,105130.0,105120.0,0.0313]
[1749935160516,1.30228924,105130.0,105120.0,0.18706]
[1749935160956,1.39853112,105130.0,105120.0,0.0313]
[1749935161173,1.39853112,105130.0,105120.0,0.15588]
[1749935161174,1.99172724,105130.0,105120.0,0.15588]
[1749935161387,1.41761868,105130.0,105120.0,0.15588]
[1749935161651,0.1997715,105120.0,105110.0,0.0332]
[1749935161916,1.78983164,105120.0,105110.0,0.0168]
[1749935162148,0.19479051,105110.0,105100.0,0.0332]
[1749935162380,0.81535625,105110.0,105100.0,0.03324759]
[1749935162663,0.83321566,105110.0,105100.0,0.18944759]
[1749935163133,0.83321572,105110.0,105100.0,0.18944759]
[1749935163368,0.83321572,105110.0,105100.0,0.03324759]
[1749935163369,0.8153565,105110.0,105100.0,0.03324759]
[1749935163598,0.8242864,105110.0,105100.0,0.18944759]
[1749935163833,0.81535705,105110.0,105100.0,0.19044759]
[1749935164065,0.81084361,105110.0,105100.0,0.19044759]
[1749935164315,0.83821812,105110.0,105100.0,0.03424759]
[1749935164552,0.83821817,105110.0,105100.0,0.03524759]
[1749935164770,0.82928777,105110.0,105100.0,0.19156759]
[1749935165010,0.82925114,105110.0,105100.0,0.19156759]
[1749935165226,0.83816339,105110.0,105100.0,0.19156759]
[1749935165470,0.761501,105110.0,105100.0,0.03524759]
[1749935165714,0.77041316,105110.0,105100.0,0.19156759]
[1749935165926,0.75258884,105110.0,105100.0,0.03524759]
[1749935166153,0.77041316,105110.0,105100.0,0.03524759]
[1749935166419,0.75258878,105110.0,105100.0,0.19152759]
[1749935166649,1.17038668,105120.0,105110.0,0.0333]
[1749935166878,1.17929825,105120.0,105110.0,0.0333]
[1749935167080,1.17929832,105120.0,105110.0,0.0333]
[1749935167524,0.19979051,105110.0,105100.0,0.01894759]
[1749935167752,0.19979051,105110.0,105100.0,4.759e-05]
[1749935167753,1.03991844,105110.0,105100.0,4.759e-05]
[1749935167993,1.14498032,105110.0,105100.0,0.15652759]
[1749935168274,1.15606766,105110.0,105100.0,0.15652759]
[1749935168690,1.16498079,105110.0,105100.0,0.15648759]
[1749935168930,1.16498091,105110.0,105100.0,0.15648759]
[1749935169119,1.15706766,105110.0,105100.0,0.15648759]
[1749935169334,1.16598087,105110.0,105100.0,0.15648759]
[1749935169561,1.16598094,105110.0,105100.0,4.759e-05]
[1749935169774,1.06983172,105110.0,105100.0,0.15644759]
[1749935169986,1.06983178,105110.0,105100.0,0.17334759]
[1749935170200,1.0698317,105110.0,105100.0,0.17334759]
[1749935170413,1.06983165,105110.0,105100.0,0.17334759]
[1749935170630,1.07183165,105110.0,105100.0,0.17334759]
[1749935171061,1.10043665,105110.0,105100.0,0.17334759]
[1749935171307,1.1004367,105110.0,105100.0,0.18984759]
[1749935171562,1.10043665,105110.0,105100.0,0.18984759]
[1749935171771,1.09152344,105110.0,105100.0,0.18984759]
[1749935172022,1.10043644,105110.0,105100.0,0.18984759]
[1749935172235,1.09152344,105110.0,105100.0,0.18984759]
[1749935172648,1.10043628,105110.0,105100.0,0.18984759]
[1749935172853,1.09152344,105110.0,105100.0,0.18984759]
[1749935173269,1.10043628,105110.0,105100.0,0.18984759]
[1749935173484,1.09152344,105110.0,105100.0,0.18984759]
[1749935173899,1.10043632,105110.0,105100.0,0.18984759]
[1749935174539,1.10043638,105110.0,105100.0,0.18984759]
[1749935174749,1.10043637,105110.0,105100.0,0.18984759]
[1749935175170,1.10043638,105110.0,105100.0,0.18984759]
[1749935175383,1.10043637,105110.0,105100.0,0.18984759]
[1749935176032,1.10043638,105110.0,105100.0,0.18984759]
[1749935176234,1.09152344,105110.0,105100.0,0.18984759]
[1749935176660,1.10043632,105110.0,105100.0,0.18984759]
[1749935177077,1.10043631,105110.0,105100.0,0.18984759]
[1749935177506,1.1004363,105110.0,105100.0,0.18984759]
[1749935177723,1.09152344,105110.0,105100.0,0.18984759]
[1749935177934,1.10043631,105110.0,105100.0,0.18984759]
[1749935178203,1.09152344,105110.0,105100.0,0.18984759]
[1749935178450,1.10043458,105110.0,105100.0,0.03344759]
[1749935178679,1.09152344,105110.0,105100.0,0.18976759]
[1749935179103,1.10043462,105110.0,105100.0,0.18976759]
[1749935179308,1.10043464,105110.0,105100.0,0.18976759]
[1749935180788,1.09152344,105110.0,105100.0,0.18976759]
[1749935180996,1.10043465,105110.0,105100.0,0.18976759]
[1749935181647,1.09152344,105110.0,105100.0,0.18976759]
[1749935181856,1.10043458,105110.0,105100.0,0.18976759]
[1749935182066,1.10043461,105110.0,105100.0,0.18976759]
[1749935182687,1.09152344,105110.0,105100.0,0.18976759]
[1749935182902,1.10043461,105110.0,105100.0,0.18976759]
[1749935183347,1.09152344,105110.0,105100.0,0.18976759]
[1749935183770,1.1004221,105110.0,105100.0,0.18976759]
[1749935183973,1.10042211,105110.0,105100.0,0.18976759]
[1749935184423,1.09152344,105110.0,105100.0,0.18976759]
[1749935184636,1.1004221,105110.0,105100.0,0.18976759]
[1749935185071,1.1004201,105110.0,105100.0,0.18976759]
[1749935185297,1.10042009,105110.0,105100.0,0.18976759]
[1749935185582,1.09152344,105110.0,105100.0,0.18976759]
[1749935185794,1.10042009,105110.0,105100.0,0.18976759]
[1749935186211,1.10041935,105110.0,105100.0,0.18976759]
[1749935187139,1.10041933,105110.0,105100.0,0.18976759]
[1749935188726,1.10041934,105110.0,105100.0,0.18976759]
[1749935189800,1.09152344,105110.0,105100.0,0.18976759]
[1749935190018,1.10041934,105110.0,105100.0,0.18976759]
[1749935190891,1.10043692,105110.0,105100.0,0.18976759]
[1749935191334,1.09152344,105110.0,105100.0,0.18976759]
[1749935191560,0.55655074,105110.0,105100.0,0.18976759]
[1749935191781,1.10043691,105110.0,105100.0,0.18976759]
[1749935192700,1.09152344,105110.0,105100.0,0.18976759]
[1749935192924,1.10044016,105110.0,105100.0,0.18976759]
[1749935193142,1.10044017,105110.0,105100.0,0.18976759]
[1749935193564,1.09152344,105110.0,105100.0,0.18976759]
[1749935193776,1.10044016,105110.0,105100.0,0.18976759]
[1749935194188,1.09152344,105110.0,105100.0,0.18976759]
[1749935194370,1.10044016,105110.0,105100.0,0.18976759]
[1749935194826,1.1004545,105110.0,105100.0,0.18976759]
[1749935195250,1.09152344,105110.0,105100.0,0.18976759]
[1749935195697,1.09152344,105110.0,105100.0,0.42092518]
[1749935195943,0.05956169,105110.0,105100.0,0.40860559]
[1749935196161,0.37095656,105110.0,105100.0,0.40860559]
[1749935196385,0.01193022,105110.0,105100.0,0.40860559]
[1749935196601,0.01192997,105110.0,105100.0,0.40860559]
[1749935196856,0.01051311,105110.0,105100.0,0.50475481]
[1749935197064,0.01844305,105110.0,105100.0,0.50475481]
[1749935197278,0.01092994,105110.0,105100.0,0.50475481]
[1749935197495,0.01051302,105110.0,105100.0,0.50475481]
[1749935197702,0.02895615,105110.0,105100.0,0.50475481]
[1749935197915,0.01944295,105110.0,105100.0,0.50575481]
[1749935198356,0.00992993,105110.0,105100.0,0.60199657]
[1749935198601,0.00892971,105110.0,105100.0,0.60199657]
[1749935199039,0.00892971,105110.0,105100.0,0.50684735]
[1749935199257,0.06664883,105120.0,105110.0,0.25041728]
[1749935199476,0.0755785,105120.0,105110.0,0.25041728]
[1749935199690,0.06664883,105120.0,105110.0,0.25041728]
[1749935199904,0.07557833,105120.0,105110.0,0.25041728]
[1749935200329,0.08550783,105120.0,105110.0,0.25041728]
[1749935200539,0.63039352,105120.0,105110.0,0.25041728]
[1749935200718,0.6214645,105120.0,105110.0,0.25041728]
[1749935201411,0.63039331,105120.0,105110.0,0.25041728]
[1749935201831,0.6214645,105120.0,105110.0,0.25041728]
[1749935202047,0.63039331,105120.0,105110.0,0.25041728]
[1749935202702,0.63039332,105120.0,105110.0,0.25041728]
[1749935202923,0.63990625,105120.0,105110.0,0.25041747]
[1749935203159,0.63097743,105120.0,105110.0,0.25993076]
[1749935203388,0.82065281,105120.0,105110.0,0.0316]
[1749935203609,0.80162806,105120.0,105110.0,0.18808]
[1749935203834,0.80162806,105120.0,105110.0,0.39738435]
[1749935204057,0.80162823,105120.0,105110.0,0.39738435]
[1749935204317,0.7926991,105120.0,105110.0,0.39738435]
[1749935204584,0.79211537,105120.0,105110.0,0.18808]
[1749935204794,0.78318635,105120.0,105110.0,0.18808]
[1749935205004,0.7921156,105120.0,105110.0,0.19759384]
[1749935205439,0.7921156,105120.0,105110.0,0.18808]
[1749935206194,0.79211565,105120.0,105110.0,0.18808]
[1749935206786,0.78318635,105120.0,105110.0,0.18808]
[1749935207001,0.79211564,105120.0,105110.0,0.18808]
[1749935207206,0.78318635,105120.0,105110.0,0.18808]
[1749935207420,0.79211563,105120.0,105110.0,0.18808]
[1749935207620,0.78318635,105120.0,105110.0,0.18808]
[1749935207832,0.79211563,105120.0,105110.0,0.18808]
[1749935208041,0.79211563,105120.0,105110.0,0.23476335]
[1749935208901,0.79208395,105120.0,105110.0,0.23476335]
[1749935209140,0.79208395,105120.0,105110.0,0.18808]
[1749935209598,0.78318635,105120.0,105110.0,0.18808]
[1749935210247,0.79208398,105120.0,105110.0,0.0316]
[1749935210476,0.79208398,105120.0,105110.0,0.18816]
[1749935212145,0.78318635,105120.0,105110.0,0.18816]
[1749935213721,0.79209159,105120.0,105110.0,0.18816]
[1749935213931,0.78318635,105120.0,105110.0,0.18816]
[1749935214145,0.79209154,105120.0,105110.0,0.18816]
[1749935214797,0.79209131,105120.0,105110.0,0.18816]
[1749935215050,1.13209134,105120.0,105110.0,0.0316]
[1749935215292,1.12318635,105120.0,105110.0,0.18812]
[1749935215710,1.13209173,105120.0,105110.0,0.18812]
[1749935216019,1.12318635,105120.0,105110.0,0.18812]
[1749935216123,1.13209181,105120.0,105110.0,0.18812]
[1749935216359,1.42824103,105120.0,105110.0,0.18808]
[1749935216606,1.9721272,105120.0,105110.0,0.18808]
[1749935216846,2.06836896,105120.0,105110.0,0.0316]
[1749935217068,2.2794635,105120.0,105110.0,0.17202]
[1749935217288,2.28836912,105120.0,105110.0,0.17202]
[1749935217943,2.2794635,105120.0,105110.0,0.17202]
[1749935218592,2.28837153,105120.0,105110.0,0.17202]
[1749935218804,2.2794635,105120.0,105110.0,0.17202]
[1749935219250,1.64833614,105120.0,105110.0,0.18772]
[1749935219474,2.19222217,105120.0,105110.0,0.18772]
[1749935219916,2.19222216,105120.0,105110.0,0.18772]
[1749935220124,2.19222185,105120.0,105110.0,0.18772]
[1749935220343,1.64833568,105120.0,105110.0,0.18772]
[1749935220570,1.63942811,105120.0,105110.0,0.18772]
[1749935220785,1.64833606,105120.0,105110.0,0.18772]
[1749935221004,1.64833607,105120.0,105110.0,0.18772]
[1749935221224,2.19222222,105120.0,105110.0,0.18772]
[1749935221530,2.18331428,105120.0,105110.0,0.18772]
[1749935221770,0.58820804,105120.0,105110.0,0.40628727]
[1749935221989,1.13209378,105120.0,105110.0,0.18772]
[1749935222206,1.12318635,105120.0,105110.0,0.18772]
[1749935222442,1.13209379,105120.0,105110.0,0.18772]
[1749935223159,1.13210114,105120.0,105110.0,0.18772]
[1749935223640,1.12318635,105120.0,105110.0,0.18772]
[1749935224087,1.13210114,105120.0,105110.0,0.18772]
[1749935224316,1.12318635,105120.0,105110.0,0.18772]
[1749935224740,1.12318635,105120.0,105110.0,0.3875106]
[1749935225201,1.13210103,105120.0,105110.0,0.18772]
[1749935225423,1.13210103,105120.0,105110.0,0.19723384]
[1749935225424,1.12318635,105120.0,105110.0,0.19723384]
[1749935225641,1.13210103,105120.0,105110.0,0.39702444]
[1749935225850,1.13210092,105120.0,105110.0,0.39702444]
[1749935226067,1.13210089,105120.0,105110.0,0.39702444]
[1749935226266,1.10350189,105120.0,105110.0,0.39702444]
[1749935226507,1.1035019,105120.0,105110.0,0.39702444]
[1749935226738,1.09398897,105120.0,105110.0,0.19723384]
[1749935226967,0.90432842,105120.0,105110.0,0.38751069]
[1749935227184,0.38838149,105120.0,105110.0,0.41605112]
[1749935227422,1.13203934,105120.0,105110.0,0.39702444]
[1749935227641,0.57864054,105120.0,105110.0,0.40653792]